[Event "November 21 Late 2023"]
[Site "https://www.chess.com"]
[Date "2023.11.21"]
[Round "3"]
[White "Rakitic2010"]
[Black "Principe, Gerson"]
[Result "1-0"]
[Board "80"]
[TimeControl "180+1"]
[BlackFideId "3804550"]
[WhiteElo "2435"]
[BlackElo "2186"]
[BlackTeam "PER"]
[WhiteClock "0:00:10"]
[BlackClock "0:00:04"]

1. e4 {[%clk 0:03:00]}  c6 {[%clk 0:02:57]} 2. Nf3 {[%clk 0:03:00]}  d5 {[%clk 0:02:58]} 3. exd5 {[%clk 0:03:01]}  cxd5 {[%clk 0:02:58]} 4. Ne5 {[%clk 0:02:58]}  Nc6 {[%clk 0:02:55]} 5. d4 {[%clk 0:02:57]}  Nf6 {[%clk 0:02:53]} 6. Bb5 {[%clk 0:02:53]}  Bd7 {[%clk 0:02:53]} 7. Bxc6 {[%clk 0:02:52]}  bxc6 {[%clk 0:02:52]} 8. Nd2 {[%clk 0:02:51]}  e6 {[%clk 0:02:52]} 9. Nb3 {[%clk 0:02:50]}  Be7 {[%clk 0:02:48]} 10. O-O {[%clk 0:02:48]}  O-O {[%clk 0:02:48]} 11. Bg5 {[%clk 0:02:46]}  h6 {[%clk 0:02:46]} 12. Bh4 {[%clk 0:02:42]}  Qc7 {[%clk 0:02:40]} 13. Nc5 {[%clk 0:02:32]}  Bxc5 {[%clk 0:02:21]} 14. Bxf6 {[%clk 0:02:31]}  gxf6 {[%clk 0:02:21]} 15. Nxd7 {[%clk 0:02:30]}  Qxd7 {[%clk 0:02:15]} 16. dxc5 {[%clk 0:02:07]}  e5 {[%clk 0:02:13]} 17. Qh5 {[%clk 0:01:57]}  Kh7 {[%clk 0:02:09]} 18. a4 {[%clk 0:01:57]}  Rg8 {[%clk 0:02:08]} 19. Ra3 {[%clk 0:01:56]}  Rg5 {[%clk 0:02:08]} 20. Qh3 {[%clk 0:01:50]}  Qxh3 {[%clk 0:02:03]} 21. Rxh3 {[%clk 0:01:50]}  Rb8 {[%clk 0:02:01]} 22. b3 {[%clk 0:01:42]}  e4 {[%clk 0:01:59]} 23. Rd1 {[%clk 0:01:32]}  f5 {[%clk 0:01:57]} 24. g3 {[%clk 0:01:30]}  f4 {[%clk 0:01:55]} 25. Rh4 {[%clk 0:01:30]}  f3 {[%clk 0:01:38]} 26. Kf1 {[%clk 0:01:24]}  Rd8 {[%clk 0:01:28]} 27. Ke1 {[%clk 0:01:19]}  Re5 {[%clk 0:01:27]} 28. Rd4 {[%clk 0:01:07]}  Rde8 {[%clk 0:01:12]} 29. Rf4 {[%clk 0:01:05]}  Kg6 {[%clk 0:01:06]} 30. b4 {[%clk 0:00:56]}  f5 {[%clk 0:01:04]} 31. c4 {[%clk 0:00:50]}  e3 {[%clk 0:00:45]} 32. fxe3 {[%clk 0:00:49]}  Rxe3+ {[%clk 0:00:46]} 33. Kf2 {[%clk 0:00:50]}  Re2+ {[%clk 0:00:45]} 34. Kf1 {[%clk 0:00:23]}  Re1+ {[%clk 0:00:21]} 35. Kf2 {[%clk 0:00:22]}  R8e2+ {[%clk 0:00:21]} 36. Kxf3 {[%clk 0:00:22]}  Rxh2 {[%clk 0:00:18]} 37. cxd5 {[%clk 0:00:21]}  Rf1+ {[%clk 0:00:12]} 38. Ke3 {[%clk 0:00:18]}  Re1+ {[%clk 0:00:12]} 39. Kf3 {[%clk 0:00:19]}  Rf1+ {[%clk 0:00:11]} 40. Ke3 {[%clk 0:00:19]}  Re1+ {[%clk 0:00:11]} 41. Kd3 {[%clk 0:00:19]}  cxd5 {[%clk 0:00:11]} 42. Rxd5 {[%clk 0:00:15]}  Rd1+ {[%clk 0:00:11]} 43. Kc4 {[%clk 0:00:15]}  Rc2+ {[%clk 0:00:12]} 44. Kb3 {[%clk 0:00:16]}  Rxd5 {[%clk 0:00:07]} 45. Kxc2 {[%clk 0:00:16]}  a5 {[%clk 0:00:06]} 46. Kc3 {[%clk 0:00:12]}  axb4+ {[%clk 0:00:07]} 47. Kxb4 {[%clk 0:00:13]}  Rd3 {[%clk 0:00:07]} 48. a5 {[%clk 0:00:13]}  Rxg3 {[%clk 0:00:07]} 49. c6 {[%clk 0:00:13]}  Rg1 {[%clk 0:00:07]} 50. c7 {[%clk 0:00:13]}  Rb1+ {[%clk 0:00:06]} 51. Kc5 {[%clk 0:00:10]}  Rc1+ {[%clk 0:00:04]} 52. Rc4 {[%clk 0:00:10]} 1-0

[Event "November 21 Late 2023"]
[Site "https://www.chess.com"]
[Date "2023.11.21"]
[Round "3"]
[White "Wadsworth, Matthew J"]
[Black "Arnold, Ken"]
[Result "1-0"]
[Board "84"]
[TimeControl "180+1"]
[WhiteFideId "415804"]
[BlackFideId "2056836"]
[WhiteElo "2266"]
[BlackElo "2431"]
[WhiteTeam "ENG"]
[BlackTeam "USA"]
[WhiteClock "0:00:35"]
[BlackClock "0:00:00"]

1. e4 {[%clk 0:03:00]}  Nf6 {[%clk 0:03:00]} 2. e5 {[%clk 0:03:00]}  Nd5 {[%clk 0:03:00]} 3. d4 {[%clk 0:02:59]}  d6 {[%clk 0:02:53]} 4. Nf3 {[%clk 0:02:58]}  Nb6 {[%clk 0:02:45]} 5. Be2 {[%clk 0:02:56]}  Nc6 {[%clk 0:02:43]} 6. exd6 {[%clk 0:02:53]}  exd6 {[%clk 0:02:41]} 7. O-O {[%clk 0:02:52]}  Be7 {[%clk 0:02:40]} 8. d5 {[%clk 0:02:47]}  Ne5 {[%clk 0:02:28]} 9. Nxe5 {[%clk 0:02:47]}  dxe5 {[%clk 0:02:29]} 10. a4 {[%clk 0:02:45]}  a5 {[%clk 0:02:26]} 11. Nc3 {[%clk 0:02:40]}  O-O {[%clk 0:02:26]} 12. Be3 {[%clk 0:02:40]}  Nd7 {[%clk 0:02:22]} 13. Nb5 {[%clk 0:02:25]}  Bc5 {[%clk 0:02:10]} 14. Qd2 {[%clk 0:02:07]}  b6 {[%clk 0:02:05]} 15. Rfd1 {[%clk 0:02:06]}  Bb7 {[%clk 0:02:03]} 16. d6 {[%clk 0:01:57]}  c6 {[%clk 0:01:30]} 17. Nc7 {[%clk 0:01:51]}  Rc8 {[%clk 0:01:28]} 18. Bg4 {[%clk 0:01:50]}  Bxe3 {[%clk 0:01:23]} 19. Qxe3 {[%clk 0:01:49]}  f5 {[%clk 0:01:16]} 20. Ne6 {[%clk 0:01:47]}  Qf6 {[%clk 0:01:13]} 21. Nxf8 {[%clk 0:01:45]}  Rxf8 {[%clk 0:01:06]} 22. Be2 {[%clk 0:01:39]}  Rd8 {[%clk 0:00:59]} 23. f4 {[%clk 0:01:32]}  e4 {[%clk 0:00:58]} 24. Bc4+ {[%clk 0:01:24]}  Kf8 {[%clk 0:00:57]} 25. Qd4 {[%clk 0:01:24]}  Qxd4+ {[%clk 0:00:49]} 26. Rxd4 {[%clk 0:01:23]}  Nf6 {[%clk 0:00:45]} 27. Rad1 {[%clk 0:01:22]}  Nd5 {[%clk 0:00:42]} 28. Bxd5 {[%clk 0:01:18]}  cxd5 {[%clk 0:00:42]} 29. c4 {[%clk 0:01:07]}  Ke8 {[%clk 0:00:36]} 30. cxd5 {[%clk 0:01:06]}  Rc8 {[%clk 0:00:35]} 31. Kf2 {[%clk 0:01:00]}  Kd7 {[%clk 0:00:34]} 32. h3 {[%clk 0:00:58]}  Kxd6 {[%clk 0:00:33]} 33. g4 {[%clk 0:00:57]}  g6 {[%clk 0:00:26]} 34. Ke3 {[%clk 0:00:54]}  Ba6 {[%clk 0:00:20]} 35. gxf5 {[%clk 0:00:54]}  gxf5 {[%clk 0:00:20]} 36. Rg1 {[%clk 0:00:54]}  Rc2 {[%clk 0:00:20]} 37. Rd2 {[%clk 0:00:54]}  Rc4 {[%clk 0:00:19]} 38. Rg7 {[%clk 0:00:49]}  Rxa4 {[%clk 0:00:18]} 39. Rxh7 {[%clk 0:00:50]}  Rb4 {[%clk 0:00:17]} 40. Rh6+ {[%clk 0:00:48]}  Kd7 {[%clk 0:00:17]} 41. d6 {[%clk 0:00:47]}  Bd3 {[%clk 0:00:17]} 42. h4 {[%clk 0:00:45]}  Rc4 {[%clk 0:00:14]} 43. h5 {[%clk 0:00:44]}  Rc1 {[%clk 0:00:14]} 44. Rf6 {[%clk 0:00:42]}  Re1+ {[%clk 0:00:12]} 45. Kd4 {[%clk 0:00:43]}  Bb1 {[%clk 0:00:09]} 46. h6 {[%clk 0:00:40]}  e3 {[%clk 0:00:10]} 47. Rh2 {[%clk 0:00:36]}  e2 {[%clk 0:00:07]} 48. Ke3 {[%clk 0:00:36]}  Rf1 {[%clk 0:00:01]} 49. Kxe2 {[%clk 0:00:35]}  Rxf4 {[%clk 0:00:02]} 50. h7 {[%clk 0:00:35]}  Re4+ {[%clk 0:00:02]} 51. Kd2 {[%clk 0:00:35]}  Rd4+ {[%clk 0:00:00]} 52. Kc3 {[%clk 0:00:35]} 1-0

[Event "November 21 Late 2023"]
[Site "https://www.chess.com"]
[Date "2023.11.21"]
[Round "3"]
[White "Marcziter, Dmitrii"]
[Black "Sturt, Raven"]
[Result "0-1"]
[Board "87"]
[TimeControl "180+1"]
[WhiteFideId "13900765"]
[BlackFideId "2007304"]
[WhiteElo "2142"]
[BlackElo "2408"]
[WhiteTeam "GER"]
[BlackTeam "USA"]
[WhiteClock "0:00:13"]
[BlackClock "0:00:56"]

1. e4 {[%clk 0:03:00]}  e5 {[%clk 0:02:59]} 2. Nf3 {[%clk 0:02:58]}  Nc6 {[%clk 0:02:59]} 3. Bc4 {[%clk 0:02:57]}  Nf6 {[%clk 0:02:59]} 4. Ng5 {[%clk 0:02:56]}  d5 {[%clk 0:02:59]} 5. exd5 {[%clk 0:02:56]}  Na5 {[%clk 0:02:59]} 6. Bb5+ {[%clk 0:02:56]}  c6 {[%clk 0:03:00]} 7. dxc6 {[%clk 0:02:56]}  bxc6 {[%clk 0:03:00]} 8. Bd3 {[%clk 0:02:57]}  h6 {[%clk 0:03:00]} 9. Ne4 {[%clk 0:02:47]}  Nd5 {[%clk 0:02:48]} 10. Ng3 {[%clk 0:02:46]}  Nf4 {[%clk 0:02:47]} 11. O-O {[%clk 0:02:45]}  Nxd3 {[%clk 0:02:41]} 12. cxd3 {[%clk 0:02:44]}  Be7 {[%clk 0:02:40]} 13. Re1 {[%clk 0:02:43]}  O-O {[%clk 0:02:40]} 14. Nc3 {[%clk 0:02:40]}  c5 {[%clk 0:02:37]} 15. b3 {[%clk 0:02:31]}  Nc6 {[%clk 0:02:37]} 16. Bb2 {[%clk 0:02:28]}  Ba6 {[%clk 0:02:37]} 17. Rc1 {[%clk 0:02:20]}  Nb4 {[%clk 0:02:30]} 18. Rb1 {[%clk 0:02:00]}  Nxd3 {[%clk 0:02:29]} 19. Re3 {[%clk 0:02:00]}  Bg5 {[%clk 0:02:28]} 20. Re2 {[%clk 0:01:27]}  f5 {[%clk 0:02:12]} 21. Ba1 {[%clk 0:01:18]}  e4 {[%clk 0:02:12]} 22. Na4 {[%clk 0:01:00]}  Qe8 {[%clk 0:02:02]} 23. f3 {[%clk 0:00:52]}  exf3 {[%clk 0:01:29]} 24. Rxe8 {[%clk 0:00:49]}  f2+ {[%clk 0:01:29]} 25. Kh1 {[%clk 0:00:47]}  Raxe8 {[%clk 0:01:28]} 26. Nf1 {[%clk 0:00:39]}  Re1 {[%clk 0:01:27]} 27. Qc2 {[%clk 0:00:39]}  Nb4 {[%clk 0:01:07]} 28. Qb2 {[%clk 0:00:25]}  Bf6 {[%clk 0:01:06]} 29. d4 {[%clk 0:00:21]}  Bxd4 {[%clk 0:00:57]} 30. Qd2 {[%clk 0:00:15]}  Rxb1 {[%clk 0:00:56]} 31. Bxd4 {[%clk 0:00:13]}  Rxf1# {[%clk 0:00:56]} 0-1

[Event "November 21 Late 2023"]
[Site "https://www.chess.com"]
[Date "2023.11.21"]
[Round "3"]
[White "TheAlienParty"]
[Black "Bettalli, Francesco"]
[Result "1/2-1/2"]
[Board "90"]
[TimeControl "180+1"]
[BlackFideId "2816453"]
[WhiteElo "2386"]
[BlackElo "2226"]
[BlackTeam "ITA"]
[WhiteClock "0:00:18"]
[BlackClock "0:00:22"]

1. Nf3 {[%clk 0:02:58]}  g6 {[%clk 0:02:57]} 2. d4 {[%clk 0:02:56]}  Bg7 {[%clk 0:02:58]} 3. g3 {[%clk 0:02:55]}  c5 {[%clk 0:02:58]} 4. dxc5 {[%clk 0:02:55]}  Qa5+ {[%clk 0:02:57]} 5. Bd2 {[%clk 0:02:54]}  Qxc5 {[%clk 0:02:57]} 6. Bc3 {[%clk 0:02:55]}  Nf6 {[%clk 0:02:56]} 7. Bg2 {[%clk 0:02:54]}  a6 {[%clk 0:02:55]} 8. O-O {[%clk 0:02:53]}  O-O {[%clk 0:02:56]} 9. a4 {[%clk 0:02:51]}  Qc7 {[%clk 0:02:56]} 10. Nbd2 {[%clk 0:02:34]}  Nc6 {[%clk 0:02:56]} 11. a5 {[%clk 0:02:28]}  d5 {[%clk 0:02:56]} 12. Nb3 {[%clk 0:02:27]}  e5 {[%clk 0:02:54]} 13. Bd2 {[%clk 0:02:13]}  Bf5 {[%clk 0:02:49]} 14. c3 {[%clk 0:02:11]}  Rad8 {[%clk 0:02:48]} 15. Qc1 {[%clk 0:02:02]}  Rfe8 {[%clk 0:02:43]} 16. Bh6 {[%clk 0:01:59]}  Bh8 {[%clk 0:02:32]} 17. h3 {[%clk 0:01:58]}  d4 {[%clk 0:02:21]} 18. cxd4 {[%clk 0:01:55]}  exd4 {[%clk 0:02:22]} 19. Re1 {[%clk 0:01:49]}  Qd6 {[%clk 0:02:20]} 20. Qc5 {[%clk 0:01:42]}  Ne4 {[%clk 0:02:03]} 21. Qxd6 {[%clk 0:01:42]}  Rxd6 {[%clk 0:02:04]} 22. Bf4 {[%clk 0:01:39]}  Rdd8 {[%clk 0:01:56]} 23. Rac1 {[%clk 0:01:30]}  Bg7 {[%clk 0:01:46]} 24. g4 {[%clk 0:01:29]}  Be6 {[%clk 0:01:33]} 25. Nc5 {[%clk 0:01:28]}  Nxc5 {[%clk 0:01:33]} 26. Rxc5 {[%clk 0:01:28]}  Bf8 {[%clk 0:01:34]} 27. Rcc1 {[%clk 0:01:16]}  Bb4 {[%clk 0:01:33]} 28. Red1 {[%clk 0:01:14]}  Bxa5 {[%clk 0:01:28]} 29. Ng5 {[%clk 0:01:08]}  Bb3 {[%clk 0:01:25]} 30. Rd3 {[%clk 0:01:07]}  Bd5 {[%clk 0:01:24]} 31. e4 {[%clk 0:01:00]}  dxe3 {[%clk 0:01:12]} 32. Bxd5 {[%clk 0:00:58]}  e2 {[%clk 0:01:00]} 33. Bxf7+ {[%clk 0:00:56]}  Kg7 {[%clk 0:01:00]} 34. Rxd8 {[%clk 0:00:39]}  Rxd8 {[%clk 0:00:55]} 35. Bb3 {[%clk 0:00:32]}  e1=Q+ {[%clk 0:00:50]} 36. Rxe1 {[%clk 0:00:30]}  Bxe1 {[%clk 0:00:51]} 37. Ne6+ {[%clk 0:00:29]}  Kf6 {[%clk 0:00:43]} 38. Nxd8 {[%clk 0:00:30]}  Nxd8 {[%clk 0:00:43]} 39. Kf1 {[%clk 0:00:28]}  Bb4 {[%clk 0:00:44]} 40. Bd5 {[%clk 0:00:28]}  b5 {[%clk 0:00:39]} 41. Ke2 {[%clk 0:00:27]}  Ne6 {[%clk 0:00:38]} 42. Be3 {[%clk 0:00:24]}  Ke5 {[%clk 0:00:36]} 43. Bb7 {[%clk 0:00:23]}  a5 {[%clk 0:00:33]} 44. Bc6 {[%clk 0:00:21]}  Nf4+ {[%clk 0:00:21]} 45. Bxf4+ {[%clk 0:00:21]}  Kxf4 {[%clk 0:00:22]} 46. Bxb5 {[%clk 0:00:20]}  h5 {[%clk 0:00:22]} 47. gxh5 {[%clk 0:00:18]} 1/2-1/2

[Event "November 21 Late 2023"]
[Site "https://www.chess.com"]
[Date "2023.11.21"]
[Round "3"]
[White "Erdogan, Anil Berk"]
[Black "i_like_explosions"]
[Result "1-0"]
[Board "91"]
[TimeControl "180+1"]
[WhiteFideId "6348173"]
[WhiteElo "2007"]
[BlackElo "2386"]
[WhiteTeam "TUR"]
[WhiteClock "0:00:08"]
[BlackClock "0:00:05"]

1. e3 {[%clk 0:02:56]}  e6 {[%clk 0:02:57]} 2. e4 {[%clk 0:02:56]}  d5 {[%clk 0:02:57]} 3. exd5 {[%clk 0:02:56]}  exd5 {[%clk 0:02:57]} 4. d4 {[%clk 0:02:57]}  Nf6 {[%clk 0:02:57]} 5. Bg5 {[%clk 0:02:55]}  Be7 {[%clk 0:02:51]} 6. Nc3 {[%clk 0:02:55]}  c6 {[%clk 0:02:50]} 7. Bd3 {[%clk 0:02:56]}  h6 {[%clk 0:02:49]} 8. Bh4 {[%clk 0:02:55]}  Nbd7 {[%clk 0:02:49]} 9. Nge2 {[%clk 0:02:55]}  O-O {[%clk 0:02:48]} 10. Qd2 {[%clk 0:02:55]}  Re8 {[%clk 0:02:47]} 11. O-O-O {[%clk 0:02:55]}  b5 {[%clk 0:02:47]} 12. Rde1 {[%clk 0:02:50]}  a5 {[%clk 0:02:45]} 13. f3 {[%clk 0:02:48]}  a4 {[%clk 0:02:45]} 14. g4 {[%clk 0:02:46]}  Nb6 {[%clk 0:02:43]} 15. Ng3 {[%clk 0:02:45]}  b4 {[%clk 0:02:42]} 16. Nd1 {[%clk 0:02:44]}  b3 {[%clk 0:02:32]} 17. a3 {[%clk 0:02:32]}  bxc2 {[%clk 0:02:19]} 18. Nc3 {[%clk 0:02:23]}  Ba6 {[%clk 0:02:13]} 19. Nf5 {[%clk 0:02:13]}  Bxd3 {[%clk 0:01:54]} 20. Qxd3 {[%clk 0:02:08]}  Nc4 {[%clk 0:01:47]} 21. Nxe7+ {[%clk 0:02:04]}  Rxe7 {[%clk 0:01:46]} 22. Rxe7 {[%clk 0:02:00]}  Qxe7 {[%clk 0:01:46]} 23. Re1 {[%clk 0:02:00]}  Qb7 {[%clk 0:01:43]} 24. Qxc2 {[%clk 0:02:00]}  Nd7 {[%clk 0:01:37]} 25. g5 {[%clk 0:01:51]}  hxg5 {[%clk 0:01:36]} 26. Bxg5 {[%clk 0:01:51]}  Nf8 {[%clk 0:01:30]} 27. Re7 {[%clk 0:01:35]}  Qc8 {[%clk 0:01:29]} 28. Nxa4 {[%clk 0:01:20]}  Qh3 {[%clk 0:01:21]} 29. Re1 {[%clk 0:00:29]}  Qxf3 {[%clk 0:01:18]} 30. Nc3 {[%clk 0:00:27]}  Ne6 {[%clk 0:01:16]} 31. h4 {[%clk 0:00:18]}  Nxd4 {[%clk 0:01:13]} 32. Qd1 {[%clk 0:00:16]}  Qxd1+ {[%clk 0:01:08]} 33. Rxd1 {[%clk 0:00:17]}  Ne6 {[%clk 0:00:58]} 34. Kc2 {[%clk 0:00:17]}  Rb8 {[%clk 0:00:55]} 35. Bc1 {[%clk 0:00:16]}  d4 {[%clk 0:00:52]} 36. Ne4 {[%clk 0:00:13]}  f5 {[%clk 0:00:52]} 37. Ng5 {[%clk 0:00:13]}  Nxg5 {[%clk 0:00:50]} 38. hxg5 {[%clk 0:00:14]}  c5 {[%clk 0:00:48]} 39. b3 {[%clk 0:00:14]}  Nd6 {[%clk 0:00:48]} 40. a4 {[%clk 0:00:15]}  Ne4 {[%clk 0:00:48]} 41. Bf4 {[%clk 0:00:13]}  Ra8 {[%clk 0:00:44]} 42. Ra1 {[%clk 0:00:13]}  Ra6 {[%clk 0:00:33]} 43. Kd3 {[%clk 0:00:13]}  Nc3 {[%clk 0:00:24]} 44. Kc4 {[%clk 0:00:12]}  Ne2 {[%clk 0:00:24]} 45. Bd2 {[%clk 0:00:11]}  Kf7 {[%clk 0:00:21]} 46. a5 {[%clk 0:00:10]}  f4 {[%clk 0:00:18]} 47. Kb5 {[%clk 0:00:10]}  Ra8 {[%clk 0:00:17]} 48. a6 {[%clk 0:00:10]}  Ke6 {[%clk 0:00:16]} 49. Kb6 {[%clk 0:00:06]}  Kd5 {[%clk 0:00:16]} 50. Kb7 {[%clk 0:00:07]}  Re8 {[%clk 0:00:15]} 51. a7 {[%clk 0:00:07]}  f3 {[%clk 0:00:15]} 52. Be1 {[%clk 0:00:05]}  d3 {[%clk 0:00:14]} 53. a8=Q {[%clk 0:00:05]}  Rxa8 {[%clk 0:00:14]} 54. Rxa8 {[%clk 0:00:06]}  c4 {[%clk 0:00:14]} 55. bxc4+ {[%clk 0:00:07]}  Kxc4 {[%clk 0:00:14]} 56. Rf8 {[%clk 0:00:07]}  Nd4 {[%clk 0:00:12]} 57. g6 {[%clk 0:00:07]}  Kb3 {[%clk 0:00:07]} 58. Rd8 {[%clk 0:00:07]}  Kc4 {[%clk 0:00:03]} 59. Bf2 {[%clk 0:00:05]}  Ne6 {[%clk 0:00:02]} 60. Rd6 {[%clk 0:00:04]}  Nf4 {[%clk 0:00:02]} 61. Rd4+ {[%clk 0:00:04]}  Kc3 {[%clk 0:00:02]} 62. Rxf4 {[%clk 0:00:04]}  d2 {[%clk 0:00:03]} 63. Rd4 {[%clk 0:00:02]}  Kc2 {[%clk 0:00:04]} 64. Be3 {[%clk 0:00:02]}  d1=Q {[%clk 0:00:04]} 65. Rxd1 {[%clk 0:00:03]}  Kxd1 {[%clk 0:00:05]} 66. Kc6 {[%clk 0:00:03]}  Ke2 {[%clk 0:00:05]} 67. Bb6 {[%clk 0:00:04]}  f2 {[%clk 0:00:05]} 68. Bxf2 {[%clk 0:00:05]}  Kxf2 {[%clk 0:00:06]} 69. Kd6 {[%clk 0:00:06]}  Kf3 {[%clk 0:00:06]} 70. Ke6 {[%clk 0:00:06]}  Kf4 {[%clk 0:00:07]} 71. Kf7 {[%clk 0:00:07]}  Kf5 {[%clk 0:00:05]} 72. Kxg7 {[%clk 0:00:08]} 1-0

[Event "November 21 Late 2023"]
[Site "https://www.chess.com"]
[Date "2023.11.21"]
[Round "3"]
[White "Leiva, Gianmarco"]
[Black "PapaieDudu"]
[Result "1-0"]
[Board "92"]
[TimeControl "180+1"]
[WhiteFideId "3804399"]
[WhiteElo "2335"]
[BlackElo "2373"]
[WhiteTeam "PER"]
[WhiteClock "0:00:44"]
[BlackClock "0:00:04"]

1. b3 {[%clk 0:03:00]}  d5 {[%clk 0:03:00]} 2. Bb2 {[%clk 0:03:01]}  e6 {[%clk 0:03:00]} 3. e3 {[%clk 0:03:02]}  Nf6 {[%clk 0:03:01]} 4. Nf3 {[%clk 0:03:02]}  Bd6 {[%clk 0:03:01]} 5. c4 {[%clk 0:03:02]}  O-O {[%clk 0:03:01]} 6. Nc3 {[%clk 0:03:02]}  b6 {[%clk 0:03:01]} 7. Rc1 {[%clk 0:03:02]}  Bb7 {[%clk 0:03:02]} 8. cxd5 {[%clk 0:03:02]}  exd5 {[%clk 0:03:01]} 9. Nb5 {[%clk 0:03:02]}  Nc6 {[%clk 0:02:55]} 10. Nxd6 {[%clk 0:03:01]}  Qxd6 {[%clk 0:02:55]} 11. Be2 {[%clk 0:02:57]}  Rfe8 {[%clk 0:02:51]} 12. O-O {[%clk 0:02:57]}  Rad8 {[%clk 0:02:50]} 13. Qc2 {[%clk 0:02:55]}  Rd7 {[%clk 0:02:49]} 14. Qf5 {[%clk 0:02:49]}  Ne7 {[%clk 0:02:46]} 15. Qg5 {[%clk 0:02:40]}  h6 {[%clk 0:02:40]} 16. Qg3 {[%clk 0:02:38]}  Qxg3 {[%clk 0:02:04]} 17. hxg3 {[%clk 0:02:38]}  Ne4 {[%clk 0:02:03]} 18. d3 {[%clk 0:02:33]}  Nc5 {[%clk 0:02:02]} 19. d4 {[%clk 0:02:27]}  Ba6 {[%clk 0:01:49]} 20. Bxa6 {[%clk 0:02:09]}  Nxa6 {[%clk 0:01:49]} 21. Ne5 {[%clk 0:02:09]}  Rd6 {[%clk 0:01:49]} 22. Ba3 {[%clk 0:02:10]}  c5 {[%clk 0:01:42]} 23. dxc5 {[%clk 0:02:08]}  bxc5 {[%clk 0:01:43]} 24. Bxc5 {[%clk 0:02:09]}  Re6 {[%clk 0:01:39]} 25. Nf3 {[%clk 0:02:06]}  Ng6 {[%clk 0:01:28]} 26. Bxa7 {[%clk 0:02:05]}  Nb4 {[%clk 0:01:26]} 27. a4 {[%clk 0:02:05]}  Ra8 {[%clk 0:01:22]} 28. Bd4 {[%clk 0:02:05]}  Ne7 {[%clk 0:01:10]} 29. Bc5 {[%clk 0:02:00]}  Nd3 {[%clk 0:01:08]} 30. Rc3 {[%clk 0:01:57]}  Nxc5 {[%clk 0:01:05]} 31. Rxc5 {[%clk 0:01:58]}  Rb6 {[%clk 0:01:05]} 32. Nd4 {[%clk 0:01:55]}  Kf8 {[%clk 0:01:06]} 33. Rfc1 {[%clk 0:01:55]}  Ke8 {[%clk 0:01:06]} 34. Nb5 {[%clk 0:01:48]}  Kd7 {[%clk 0:01:02]} 35. Rc7+ {[%clk 0:01:48]}  Ke6 {[%clk 0:01:03]} 36. Nd4+ {[%clk 0:01:30]}  Kf6 {[%clk 0:01:03]} 37. Rd7 {[%clk 0:01:30]}  Rf8 {[%clk 0:00:27]} 38. Rcc7 {[%clk 0:01:29]}  Ng6 {[%clk 0:00:27]} 39. Rxd5 {[%clk 0:01:28]}  Ne5 {[%clk 0:00:26]} 40. Rb5 {[%clk 0:01:26]}  Rd6 {[%clk 0:00:26]} 41. Kf1 {[%clk 0:01:11]}  Re8 {[%clk 0:00:25]} 42. a5 {[%clk 0:01:10]}  Ng4 {[%clk 0:00:19]} 43. Rf5+ {[%clk 0:01:09]}  Kg6 {[%clk 0:00:19]} 44. Rfxf7 {[%clk 0:01:10]}  Nh2+ {[%clk 0:00:14]} 45. Kg1 {[%clk 0:01:10]}  Ng4 {[%clk 0:00:14]} 46. Rxg7+ {[%clk 0:01:10]}  Kh5 {[%clk 0:00:15]} 47. Rc5+ {[%clk 0:01:05]}  Re5 {[%clk 0:00:14]} 48. Rxe5+ {[%clk 0:00:58]}  Nxe5 {[%clk 0:00:14]} 49. b4 {[%clk 0:00:53]}  Ng4 {[%clk 0:00:07]} 50. f3 {[%clk 0:00:49]}  Nxe3 {[%clk 0:00:05]} 51. Ne2 {[%clk 0:00:45]}  Rd1+ {[%clk 0:00:05]} 52. Kf2 {[%clk 0:00:45]}  Nf1 {[%clk 0:00:04]} 53. Nf4# {[%clk 0:00:44]} 1-0

[Event "November 21 Late 2023"]
[Site "https://www.chess.com"]
[Date "2023.11.21"]
[Round "3"]
[White "Guerra Tulcan, Lenin"]
[Black "Bugayev, Vladimir"]
[Result "1/2-1/2"]
[Board "93"]
[TimeControl "180+1"]
[WhiteFideId "3601382"]
[BlackFideId "30901480"]
[WhiteElo "2368"]
[BlackElo "2368"]
[WhiteTeam "ECU"]
[BlackTeam "USA"]
[WhiteClock "0:00:50"]
[BlackClock "0:00:56"]

1. e4 {[%clk 0:03:00]}  c6 {[%clk 0:02:59]} 2. Nf3 {[%clk 0:02:59]}  d5 {[%clk 0:03:00]} 3. exd5 {[%clk 0:03:00]}  cxd5 {[%clk 0:03:00]} 4. Ne5 {[%clk 0:03:01]}  Nc6 {[%clk 0:02:57]} 5. Bb5 {[%clk 0:03:01]}  Bd7 {[%clk 0:02:57]} 6. Bxc6 {[%clk 0:02:59]}  Bxc6 {[%clk 0:02:56]} 7. O-O {[%clk 0:03:00]}  e6 {[%clk 0:02:51]} 8. b3 {[%clk 0:03:00]}  Bd6 {[%clk 0:02:46]} 9. Bb2 {[%clk 0:03:00]}  Nf6 {[%clk 0:02:46]} 10. d3 {[%clk 0:03:00]}  O-O {[%clk 0:02:42]} 11. Nd2 {[%clk 0:03:00]}  Be8 {[%clk 0:02:42]} 12. Ndf3 {[%clk 0:02:58]}  Nd7 {[%clk 0:02:39]} 13. Re1 {[%clk 0:02:58]}  f6 {[%clk 0:02:38]} 14. Ng4 {[%clk 0:02:57]}  Bf7 {[%clk 0:02:39]} 15. Nd4 {[%clk 0:02:50]}  Ne5 {[%clk 0:02:11]} 16. Nxe5 {[%clk 0:02:37]}  Bxe5 {[%clk 0:02:09]} 17. Nxe6 {[%clk 0:02:29]}  Bxe6 {[%clk 0:02:07]} 18. d4 {[%clk 0:02:29]}  Bxh2+ {[%clk 0:01:48]} 19. Kxh2 {[%clk 0:02:30]}  Bf5 {[%clk 0:01:48]} 20. c3 {[%clk 0:02:17]}  Qd6+ {[%clk 0:01:46]} 21. Kg1 {[%clk 0:02:17]}  Rfe8 {[%clk 0:01:44]} 22. a4 {[%clk 0:02:14]}  Qf4 {[%clk 0:01:32]} 23. Bc1 {[%clk 0:01:21]}  Qh4 {[%clk 0:01:28]} 24. Be3 {[%clk 0:01:16]}  Be4 {[%clk 0:01:27]} 25. f3 {[%clk 0:01:16]}  Bg6 {[%clk 0:01:21]} 26. Qd2 {[%clk 0:01:17]}  Qh5 {[%clk 0:01:11]} 27. Bf2 {[%clk 0:01:15]}  Qf5 {[%clk 0:01:10]} 28. Rxe8+ {[%clk 0:01:08]}  Rxe8 {[%clk 0:01:09]} 29. Re1 {[%clk 0:01:08]}  Rxe1+ {[%clk 0:01:05]} 30. Qxe1 {[%clk 0:01:09]}  Qb1 {[%clk 0:01:05]} 31. Qxb1 {[%clk 0:01:02]}  Bxb1 {[%clk 0:01:06]} 32. b4 {[%clk 0:00:58]}  Bc2 {[%clk 0:01:05]} 33. a5 {[%clk 0:00:58]}  a6 {[%clk 0:01:06]} 34. g4 {[%clk 0:00:56]}  Kf7 {[%clk 0:01:04]} 35. Bg3 {[%clk 0:00:54]}  Ke6 {[%clk 0:01:02]} 36. Kf2 {[%clk 0:00:52]}  Bd1 {[%clk 0:01:02]} 37. Ke3 {[%clk 0:00:52]}  g6 {[%clk 0:01:01]} 38. Be1 {[%clk 0:00:51]}  h5 {[%clk 0:01:00]} 39. gxh5 {[%clk 0:00:51]}  gxh5 {[%clk 0:01:00]} 40. Kf4 {[%clk 0:00:50]}  Bc2 {[%clk 0:00:57]} 41. Bh4 {[%clk 0:00:50]}  Bg6 {[%clk 0:00:57]} 42. Bg3 {[%clk 0:00:49]}  Bd3 {[%clk 0:00:56]} 43. Bh4 {[%clk 0:00:49]}  Bg6 {[%clk 0:00:56]} 44. Bg3 {[%clk 0:00:49]}  Bd3 {[%clk 0:00:56]} 45. Bh4 {[%clk 0:00:50]}  Bg6 {[%clk 0:00:56]} 1/2-1/2